fUST/lending_fUST_20240719
["ID","MTS","AMOUNT","RATE_DAILY","PERIOD"]
[332606650,1721341863599,-891.36,0.00021917,2]
[332606651,1721341863611,-524.18545071,0.00021917,2]
[332606652,1721341863624,-500.0,0.00021917,2]
[332606653,1721341863637,-502.93090763,0.00021917,2]
[332606654,1721341863651,-501.4357722,0.00021917,2]
[332606655,1721341863664,-506.92698373,0.00021917,2]
[332606656,1721341863676,-501.55721621,0.00021917,2]
[332606657,1721341863690,-500.0,0.00021917,2]
[332606658,1721341863703,-369.62134527,0.00021917,2]
[332606659,1721341863715,-562.66776983,0.00021917,2]
[332606660,1721341863730,-500.0,0.00021917,2]
[332606661,1721341863946,-500.0,0.00021917,2]
[332606662,1721341863958,-2896.89,0.00021917,2]
[332606663,1721341863968,-500.0,0.00021917,2]
[332606664,1721341863977,-500.0,0.00021917,2]
[332606665,1721341863987,-500.0,0.00021917,2]
[332606666,1721341863997,-4737.36,0.00021917,2]
[332606667,1721341864007,-500.0,0.00021917,2]
[332606668,1721341864016,-2661.13,0.00021917,2]
[332606669,1721341864026,-503.91948572,0.00021917,2]
[332606670,1721341864036,-5909.71,0.00021917,2]
[332606671,1721341864047,-511.07731971,0.00021917,2]
[332606672,1721341864056,-822.34,0.00021917,2]
[332606673,1721341864066,-519.70908087,0.00021917,2]
[332606674,1721341864076,-346.16693877,0.00021917,2]
[332606675,1721341864085,-508.21145126,0.00021917,2]
[332606676,1721341864095,-500.0,0.00021917,2]
[332606677,1721341864105,-508.61685905,0.00021917,2]
[332606678,1721341864115,-1305.38,0.00021917,2]
[332606679,1721341864125,-500.0,0.00021917,2]
[332606680,1721341864134,-505.22431361,0.00021917,2]
[332606681,1721341864144,-500.0,0.00021917,2]
[332606682,1721341864153,-514.6696388,0.00021917,2]
[332606683,1721341864163,-500.0,0.00021917,2]
[332606684,1721341864173,-484.64849958,0.00021917,2]
[332606685,1721341864182,-500.0,0.00021917,2]
[332606686,1721341864191,-565.28842731,0.00021917,2]
[332606687,1721341864202,-580.60808495,0.00021917,2]
[332606688,1721341864212,-507.14629811,0.00021917,2]
[332606689,1721341864221,-501.95108344,0.00021917,2]
[332606690,1721341864230,-513.01463316,0.00021917,2]
[332606691,1721341864240,-507.31851603,0.00021917,2]
[332606692,1721341864249,-500.0,0.00021917,2]
[332606693,1721341864259,-534.96369356,0.00021917,2]
[332606694,1721341864268,-500.0,0.00021917,2]
[332606695,1721341864279,-506.94947357,0.00021917,2]
[332606696,1721341864289,-500.0,0.00021917,2]
[332606697,1721341864301,-504.38908166,0.00021917,2]
[332606698,1721341864310,-546.23721251,0.00021917,2]
[332606699,1721341864320,-576.81048906,0.00021917,2]
[332606700,1721341864337,-502.2839365,0.00021917,2]
[332606701,1721341864346,-500.0,0.00021917,2]
[332606702,1721341864355,-502.98558733,0.00021917,2]
[332606703,1721341864364,-501.24105966,0.00021917,2]
[332606704,1721341864374,-505.55120817,0.00021917,2]
[332606705,1721341864384,-506.85813533,0.00021917,2]
[332606706,1721341864393,-501.54439441,0.00021917,2]
[332606707,1721341864403,-500.9244859,0.00021917,2]
[332606708,1721341864412,-507.0126831,0.00021917,2]
[332606709,1721341864422,-500.0,0.00021917,2]
[332606710,1721341864431,-511.36581756,0.00021917,2]
[332606711,1721341864440,-422.71958696,0.00021917,2]
[332606712,1721341864450,-504.08982626,0.00021917,2]
[332606713,1721341864459,-500.55108454,0.00021917,2]
[332606714,1721341864469,-514.54875023,0.00021917,2]
[332606715,1721341864478,-507.38952255,0.00021917,2]
[332606716,1721341864488,-500.0,0.00021917,2]
[332606717,1721341864497,-500.0,0.00021917,2]
[332606718,1721341864507,-500.0,0.00021917,2]
[332606719,1721341864516,-507.34904429,0.00021917,2]
[332606720,1721341864526,-505.23006098,0.00021917,2]
[332606721,1721341864537,-501.49158823,0.00021917,2]
[332606722,1721341864548,-500.0,0.00021917,2]
[332606723,1721341864558,-595.7818958,0.00021917,2]
[332606724,1721341864568,-570.75729876,0.00021917,2]
[332606725,1721341864578,-500.0,0.00021917,2]
[332606726,1721341864588,-500.0,0.00021917,2]
[332606727,1721341864598,-442.94086194,0.00021917,2]
[332606728,1721341864607,-507.31865982,0.00021917,2]
[332606729,1721341864616,-506.21801643,0.00021917,2]
[332606730,1721341864626,-504.05851551,0.00021917,2]
[332606731,1721341864635,-500.0,0.00021917,2]
[332606732,1721341864645,-500.0,0.00021917,2]
[332606733,1721341864654,-500.0,0.00021917,2]
[332606734,1721341864663,-167.3934691,0.00021917,2]
[332606735,1721341864672,-500.0,0.00021917,2]
[332606736,1721341864682,-507.26594038,0.00021917,2]
[332606737,1721341864692,-620.92987829,0.00021917,2]
[332606738,1721341864702,-500.0,0.00021917,2]
[332606739,1721341864712,-508.75229527,0.00021917,2]
[332606740,1721341864722,-503.68855987,0.00021917,2]
[332606741,1721341864732,-500.0,0.00021917,2]
[332606742,1721341864742,-503.27026039,0.00021917,2]
[332606743,1721341864752,-500.0,0.00021917,2]
[332606744,1721341864761,-500.0,0.00021917,2]
[332606745,1721341864771,-505.14302766,0.00021917,2]
[332606746,1721341864780,-500.0,0.00021917,2]
[332606747,1721341864789,-500.0,0.00021917,2]
[332606748,1721341864801,-500.0,0.00021917,2]
[332606749,1721341864811,-501.98496035,0.00021917,2]
[332606750,1721341864820,-500.0,0.00021917,2]
[332606751,1721341864829,-500.15422711,0.00021917,2]
[332606752,1721341864839,-514.13848826,0.00021917,2]
[332606753,1721341864849,-209.5790727,0.00021917,2]
[332606754,1721341864858,-500.0,0.00021917,2]
[332606755,1721341864868,-266.72,0.00021917,2]
[332606756,1721341864877,-503.10453692,0.00021917,2]
[332606757,1721341864886,-500.0,0.00021917,2]
[332606758,1721341864896,-505.03573555,0.00021917,2]
[332606759,1721341864905,-507.63523208,0.00021917,2]
[332606760,1721341864914,-500.0,0.00021917,2]
[332606761,1721341864924,-506.16723143,0.00021917,2]
[332606762,1721341864935,-509.25275745,0.00021917,2]
[332606763,1721341864944,-640.56811746,0.00021917,2]
[332606764,1721341864953,-500.0,0.00021917,2]
[332606765,1721341864963,-500.0,0.00021917,2]
[332606766,1721341864973,-500.0,0.00021917,2]
[332606767,1721341864982,-507.46979898,0.00021917,2]
[332606768,1721341864992,-500.0,0.00021917,2]
[332606769,1721341865002,-515.48341202,0.00021917,2]
[332606770,1721341865011,-513.76327331,0.00021917,2]
[332606771,1721341865021,-506.08200277,0.00021917,2]
[332606772,1721341865030,-508.70791906,0.00021917,2]
[332606773,1721341865040,-509.9692557,0.00021917,2]
[332606774,1721341865052,-500.0,0.00021917,2]
[332606775,1721341865062,-503.51218962,0.00021917,2]
[332606776,1721341865071,-301.2515248,0.00021917,2]
[332606777,1721341865082,-510.18569163,0.00021917,2]
[332606778,1721341865092,-580.55739457,0.00021917,2]
[332606779,1721341865101,-503.02334511,0.00021917,2]
[332606780,1721341865111,-508.59590296,0.00021917,2]
[332606781,1721341865120,-503.88198491,0.00021917,2]
[332606782,1721341865130,-504.32789287,0.00021917,2]
[332606783,1721341865139,-503.03194375,0.00021917,2]
[332606784,1721341865149,-508.96497825,0.00021917,2]
[332606785,1721341865158,-500.0,0.00021917,2]
[332606786,1721341865167,-500.0,0.00021917,2]
[332606787,1721341865176,-500.0,0.00021917,2]
[332606788,1721341865186,-500.0,0.00021917,2]
[332606789,1721341865195,-500.0,0.00021917,2]
[332606790,1721341865204,-500.0,0.00021917,2]
[332606791,1721341865214,-500.0,0.00021917,2]
[332606792,1721341865223,-500.0,0.00021917,2]
[332606793,1721341865232,-516.95774121,0.00021917,2]
[332606794,1721341865242,-506.06547036,0.00021917,2]
[332606795,1721341865251,-500.0,0.00021917,2]
[332606796,1721341865261,-304.49794854,0.00021917,2]
[332606797,1721341866111,-231.97761618,0.00021917,2]
[332606798,1721341866121,-503.75060738,0.00021917,2]
[332606799,1721341866130,-500.0,0.00021917,2]
[332606800,1721341866139,-500.0,0.00021917,2]
[332606801,1721341866152,-501.27804229,0.00021917,2]
[332606802,1721341866162,-515.17155398,0.00021917,2]
[332606803,1721341866172,-500.0,0.00021917,2]
[332606804,1721341866181,-538.23805043,0.00021917,2]
[332606805,1721341866191,-500.0,0.00021917,2]
[332606806,1721341866200,-500.0,0.00021917,2]
[332606807,1721341866209,-504.32360626,0.00021917,2]
[332606808,1721341866219,-506.21006842,0.00021917,2]
[332606809,1721341866228,-505.79508747,0.00021917,2]
[332606810,1721341866238,-300.0,0.00021917,2]
[332606811,1721341866248,-506.98731553,0.00021917,2]
[332606812,1721341866259,-504.49131694,0.00021917,2]
[332606813,1721341866271,-504.17909117,0.00021917,2]
[332606814,1721341866281,-504.62561634,0.00021917,2]
[332606815,1721341866293,-500.0,0.00021917,2]
[332606816,1721341866306,-500.0,0.00021917,2]
[332606817,1721341866316,-500.0,0.00021917,2]
[332606818,1721341866330,-500.0,0.00021917,2]
[332606819,1721341866342,-500.0,0.00021917,2]
[332606820,1721341866352,-505.83524465,0.00021917,2]
[332606821,1721341866362,-502.60980733,0.00021917,2]
[332606822,1721341866372,-507.03207771,0.00021917,2]
[332606823,1721341866381,-505.43223603,0.00021917,2]
[332606824,1721341866391,-505.53604794,0.00021917,2]
[332606825,1721341866400,-500.0,0.00021917,2]
[332606826,1721341866409,-503.97102546,0.00021917,2]
[332606827,1721341866418,-506.32342253,0.00021917,2]
[332606828,1721341866427,-500.55636249,0.00021917,2]
[332606829,1721341866437,-500.0,0.00021917,2]
[332606830,1721341866446,-560.44266918,0.00021917,2]
[332606831,1721341866455,-506.41834181,0.00021917,2]
[332606832,1721341866464,-502.81835034,0.00021917,2]
[332606833,1721341866474,-505.94694083,0.00021917,2]
[332606834,1721341866484,-506.08020066,0.00021917,2]
[332606835,1721341866493,-500.0,0.00021917,2]
[332606836,1721341866502,-500.0,0.00021917,2]
[332606837,1721341866511,-506.02417224,0.00021917,2]
[332606838,1721341866520,-506.19545513,0.00021917,2]
[332606839,1721341866529,-505.41412896,0.00021917,2]
[332606840,1721341866539,-503.42739605,0.00021917,2]
[332606841,1721341866549,-502.85438592,0.00021917,2]
[332606842,1721341866559,-506.90674039,0.00021917,2]
[332606843,1721341866568,-636.71901725,0.00021917,2]
[332606844,1721341866576,-500.0,0.00021917,2]
[332606845,1721341866585,-500.0,0.00021917,2]
[332606846,1721341866595,-500.0,0.00021917,2]
[332606847,1721341866605,-500.0,0.00021917,2]
[332606848,1721341866616,-502.78706096,0.00021917,2]
[332606849,1721341866775,-505.2800375,0.00021917,2]
[332606850,1721341866786,-251.95448152,0.00021917,2]
[332606851,1721341866795,-500.0,0.00021917,2]
[332606852,1721341866806,-500.0,0.00021917,2]
[332606853,1721341866816,-500.0,0.00021917,2]
[332606854,1721341866825,-500.0,0.00021917,2]
[332606855,1721341866835,-500.0,0.00021917,2]
[332606856,1721341866845,-500.0,0.00021917,2]
[332606857,1721341866854,-500.0,0.00021917,2]
[332606858,1721341866863,-500.0,0.00021917,2]
[332606859,1721341866873,-505.43698458,0.00021917,2]
[332606860,1721341866882,-503.83620965,0.00021917,2]
[332606861,1721341866891,-500.0,0.00021917,2]
[332606862,1721341866901,-500.0,0.00021917,2]
[332606863,1721341866911,-508.23642127,0.00021917,2]
[332606864,1721341866920,-481.25387059,0.00021917,2]
[332606865,1721341866930,-500.0,0.00021917,2]
[332606866,1721341866941,-503.41112092,0.00021917,2]
[332606867,1721341866952,-500.0,0.00021917,2]
[332606868,1721341866962,-554.99193017,0.00021917,2]
[332606869,1721341866971,-500.0,0.00021917,2]
[332606870,1721341866981,-513.24561122,0.00021917,2]
[332606871,1721341866991,-503.86690914,0.00021917,2]
[332606872,1721341867000,-507.7983606,0.00021917,2]
[332606873,1721341867011,-504.98121071,0.00021917,2]
[332606874,1721341867021,-504.47599424,0.00021917,2]
[332606875,1721341867030,-500.0,0.00021917,2]
[332606876,1721341867040,-500.0,0.00021917,2]
[332606877,1721341867051,-508.57812163,0.00021917,2]
[332606878,1721341867061,-500.0,0.00021917,2]
[332606879,1721341867071,-500.0,0.00021917,2]
[332606880,1721341867080,-503.01940941,0.00021917,2]
[332606881,1721341867090,-500.0,0.00021917,2]
[332606882,1721341867099,-502.49681042,0.00021917,2]
[332606883,1721341867108,-503.02360417,0.00021917,2]
[332606884,1721341867118,-502.41336511,0.00021917,2]
[332606885,1721341867127,-500.0,0.00021917,2]
[332606886,1721341867137,-500.0,0.00021917,2]
[332606887,1721341867146,-504.56172311,0.00021917,2]
[332606888,1721341867157,-507.92235304,0.00021917,2]
[332606889,1721341867168,-516.73280214,0.00021917,2]
[332606890,1721341867177,-515.1428973,0.00021917,2]
[332606891,1721341867189,-503.60293507,0.00021917,2]
[332606892,1721341867199,-503.15087094,0.00021917,2]
[332606893,1721341867209,-552.27073548,0.00021917,2]
[332606894,1721341867218,-504.63948555,0.00021917,2]
[332606895,1721341867228,-500.0,0.00021917,2]
[332606896,1721341867239,-505.76449507,0.00021917,2]
[332606897,1721341867250,-500.0,0.00021917,2]
[332606898,1721341867262,-504.13669599,0.00021917,2]
[332606899,1721341867274,-503.2681611,0.00021917,2]
[332606900,1721341867283,-500.0,0.00021917,2]
[332606901,1721341867292,-500.0,0.00021917,2]
[332606902,1721341867302,-547.6180045,0.00021917,2]
[332606903,1721341867312,-548.14151824,0.00021917,2]
[332606904,1721341867322,-500.0,0.00021917,2]
[332606905,1721341867336,-500.0,0.00021917,2]
[332606906,1721341867346,-505.11975516,0.00021917,2]
[332606907,1721341867356,-500.0,0.00021917,2]
[332606908,1721341867366,-228.10104777,0.00021917,2]
[332606909,1721341867378,-507.45038816,0.00021917,2]
[332606910,1721341867388,-507.34768654,0.00021917,2]
[332606911,1721341867399,-500.0,0.00021917,2]
[332606912,1721341867412,-500.0,0.00021917,2]
[332606913,1721341867421,-500.0,0.00021917,2]
[332606914,1721341867431,-500.0,0.00021917,2]
[332606915,1721341867442,-502.65098796,0.00021917,2]
[332606916,1721341867451,-504.53451522,0.00021917,2]
[332606917,1721341867461,-504.66776423,0.00021917,2]
[332606918,1721341867472,-508.01701534,0.00021917,2]
[332606919,1721341867481,-514.32357617,0.00021917,2]
[332606920,1721341867492,-505.54319834,0.00021917,2]
[332606921,1721341867502,-4434.21,0.00021917,2]
[332606922,1721341867512,-500.0,0.00021917,2]
[332606923,1721341867522,-500.0,0.00021917,2]
[332606924,1721341867532,-500.0,0.00021917,2]
[332606925,1721341867542,-500.0,0.00021917,2]
[332606926,1721341867552,-500.0,0.00021917,2]
[332606927,1721341867564,-500.0,0.00021917,2]
[332606928,1721341867576,-500.0,0.00021917,2]
[332606929,1721341867586,-508.81352924,0.00021917,2]
[332606930,1721341867595,-500.0,0.00021917,2]
[332606931,1721341867604,-500.0,0.00021917,2]
[332606932,1721341867614,-500.0,0.00021917,2]
[332606933,1721341867623,-500.0,0.00021917,2]
[332606934,1721341867632,-502.38931223,0.00021917,2]
[332606935,1721341867642,-500.0,0.00021917,2]
[332606936,1721341867651,-500.0,0.00021917,2]
[332606937,1721341867661,-500.0,0.00021917,2]
[332606938,1721341867670,-500.0,0.00021917,2]
[332606939,1721341867679,-500.0,0.00021917,2]
[332606940,1721341867688,-500.0,0.00021917,2]
[332606941,1721341867698,-500.0,0.00021917,2]
[332606942,1721341867707,-500.0,0.00021917,2]
[332606943,1721341867716,-500.0,0.00021917,2]
[332606944,1721341867727,-500.0,0.00021917,2]
[332606945,1721341867736,-500.0,0.00021917,2]
[332606946,1721341867746,-502.60977468,0.00021917,2]
[332606947,1721341867755,-296.24819757,0.00021917,2]
[332606948,1721341867764,-500.0,0.00021917,2]
[332606949,1721341867774,-550.65979157,0.00021917,2]
[332606950,1721341867783,-500.0,0.00021917,2]
[332606951,1721341867792,-500.0,0.00021917,2]
[332606952,1721341867804,-500.0,0.00021917,2]
[332606953,1721341867814,-500.0,0.00021917,2]
[332606954,1721341867824,-500.0,0.00021917,2]
[332606955,1721341867834,-503.92751026,0.00021917,2]
[332606956,1721341867844,-500.0,0.00021917,2]
[332606957,1721341867853,-500.0,0.00021917,2]
[332606958,1721341867863,-500.0,0.00021917,2]
[332606959,1721341867873,-500.0,0.00021917,2]
[332606960,1721341867883,-500.0,0.00021917,2]
[332606961,1721341867892,-509.98058389,0.00021917,2]
[332606962,1721341867902,-509.82155362,0.00021917,2]
[332606963,1721341867911,-500.0,0.00021917,2]
[332606964,1721341867921,-259.03887643,0.00021917,2]
[332606965,1721341867931,-500.0,0.00021917,2]
[332606966,1721341867940,-501.96153727,0.00021917,2]
[332606967,1721341867951,-511.57707046,0.00021917,2]
[332606968,1721341867960,-500.0,0.00021917,2]
[332606969,1721341867970,-234.93471355,0.00021917,2]
[332606970,1721341867980,-518.98582377,0.00021917,2]
[332606971,1721341867990,-500.0,0.00021917,2]
[332606972,1721341867999,-509.32152363,0.00021917,2]
[332606973,1721341868009,-502.41637901,0.00021917,2]
[332606974,1721341868019,-500.0,0.00021917,2]
[332606975,1721341868028,-501.63991933,0.00021917,2]
[332606976,1721341868038,-500.0,0.00021917,2]
[332606977,1721341868047,-519.64165625,0.00021917,2]
[332606978,1721341868061,-500.0,0.00021917,2]
[332606979,1721341868070,-500.78138259,0.00021917,2]
[332606980,1721341868079,-500.0,0.00021917,2]
[332606981,1721341868088,-500.0,0.00021917,2]
[332606982,1721341868098,-500.0,0.00021917,2]
[332606983,1721341868107,-500.0,0.00021917,2]
[332606984,1721341868117,-640.3,0.00021917,2]
[332606985,1721341868125,-500.0,0.00021917,2]
[332606986,1721341868135,-500.0,0.00021917,2]
[332606987,1721341868144,-434.62339366,0.00021917,2]
[332606988,1721341868156,-500.0,0.00021917,2]
[332606989,1721341868168,-500.0,0.00021917,2]
[332606990,1721341868179,-500.0,0.00021917,2]
[332606991,1721341868190,-263.36753334,0.00021917,2]
[332606992,1721341868200,-500.0,0.00021917,2]
[332606993,1721341868209,-512.17346346,0.00021917,2]
[332606994,1721341868218,-167.96399199,0.00021917,2]
[332606995,1721341868227,-505.78484037,0.00021917,2]
[332606996,1721341868237,-522.26319497,0.00021917,2]
[332606997,1721341868246,-502.26928675,0.00021917,2]
[332606998,1721341868255,-500.0,0.00021917,2]
[332606999,1721341868266,-502.03563683,0.00021917,2]
[332607000,1721341868276,-506.92826962,0.00021917,2]
[332607001,1721341868287,-500.0,0.00021917,2]
[332607002,1721341868297,-510.65940313,0.00021917,2]
[332607003,1721341868310,-505.11920375,0.00021917,2]
[332607004,1721341868319,-502.58739473,0.00021917,2]
[332607005,1721341868329,-502.37731771,0.00021917,2]
[332607006,1721341868340,-513.45589152,0.00021917,2]
[332607007,1721341868349,-505.42917373,0.00021917,2]
[332607008,1721341868359,-500.0,0.00021917,2]
[332607009,1721341868368,-501.86511888,0.00021917,2]
[332607010,1721341868378,-500.0,0.00021917,2]
[332607011,1721341868387,-500.23100069,0.00021917,2]
[332607012,1721341868396,-500.0,0.00021917,2]
[332607013,1721341868406,-500.0,0.00021917,2]
[332607014,1721341868415,-500.0,0.00021917,2]
[332607015,1721341868425,-500.0,0.00021917,2]
[332607016,1721341868435,-509.16832317,0.00021917,2]
[332607017,1721341868444,-500.0,0.00021917,2]
[332607018,1721341868454,-500.0,0.00021917,2]
[332607019,1721341868464,-500.0,0.00021917,2]
[332607020,1721341868473,-2000.0,0.00021917,2]
[332607021,1721341868483,-371.30646957,0.00021917,2]
[332607022,1721341868492,-408.66299637,0.00021917,2]
[332607023,1721341868503,-500.0,0.00021917,2]
[332607024,1721341868514,-500.0,0.00021917,2]
[332607025,1721341868524,-500.0,0.00021917,2]
[332607026,1721341868536,-500.0,0.00021917,2]
[332607027,1721341868547,-500.0,0.00021917,2]
[332607028,1721341868558,-588.41094782,0.00021917,2]
[332607029,1721341868569,-504.43344471,0.00021917,2]
[332607030,1721341868580,-500.0,0.00021917,2]
[332607031,1721341868590,-500.0,0.00021917,2]
[332607032,1721341868599,-500.0,0.00021917,2]
[332607033,1721341868610,-500.0,0.00021917,2]
[332607034,1721341868620,-500.0,0.00021917,2]
[332607035,1721341868629,-500.0,0.00021917,2]
[332607036,1721341868640,-500.0,0.00021917,2]
[332607037,1721341868650,-500.0,0.00021917,2]
[332607038,1721341868662,-548.558771,0.00021917,2]
[332607039,1721341868671,-500.0,0.00021917,2]
[332607040,1721341868681,-500.0,0.00021917,2]
[332607041,1721341868692,-504.33001375,0.00021917,2]
[332607042,1721341868703,-500.0,0.00021917,2]
[332607043,1721341868713,-500.0,0.00021917,2]
[332607044,1721341868725,-500.0,0.00021917,2]
[332607045,1721341868735,-408.65594789,0.00021917,2]
[332607046,1721341868745,-500.0,0.00021917,2]
[332607047,1721341868755,-500.0,0.00021917,2]
[332607048,1721341868768,-599.95956449,0.00021917,2]
[332607049,1721341868779,-500.0,0.00021917,2]
[332607050,1721341868790,-500.0,0.00021917,2]
[332607051,1721341868803,-501.06700876,0.00021917,2]
[332607052,1721341868814,-500.0,0.00021917,2]
[332607053,1721341868824,-500.0,0.00021917,2]
[332607054,1721341868834,-500.0,0.00021917,2]
[332607055,1721341868845,-517.36644659,0.00021917,2]
[332607056,1721341868854,-500.0,0.00021917,2]
[332607057,1721341868865,-500.0,0.00021917,2]
[332607058,1721341868875,-500.0,0.00021917,2]
[332607059,1721341868885,-506.47722316,0.00021917,2]
[332607060,1721341868896,-500.0,0.00021917,2]
[332607061,1721341868907,-504.60380746,0.00021917,2]
[332607062,1721341868918,-500.0,0.00021917,2]
[332607063,1721341868928,-517.05040019,0.00021917,2]
[332607064,1721341868938,-585.02,0.00021917,2]
[332607065,1721341868947,-500.0,0.00021917,2]
[332607066,1721341868957,-500.0,0.00021917,2]
[332607067,1721341868966,-500.0,0.00021917,2]
[332607068,1721341868975,-500.0,0.00021917,2]
[332607069,1721341868985,-503.48116363,0.00021917,2]
[332607070,1721341868994,-500.0,0.00021917,2]
[332607071,1721341869003,-500.0,0.00021917,2]
[332607072,1721341869013,-502.80868481,0.00021917,2]
[332607073,1721341869022,-500.0,0.00021917,2]
[332607074,1721341869032,-502.5737146,0.00021917,2]
[332607075,1721341869041,-500.0,0.00021917,2]
[332607076,1721341869050,-510.41055674,0.00021917,2]
[332607077,1721341869060,-500.0,0.00021917,2]
[332607078,1721341869070,-500.0,0.00021917,2]
[332607079,1721341869079,-500.0,0.00021917,2]
[332607080,1721341869088,-500.0,0.00021917,2]
[332607081,1721341869097,-500.0,0.00021917,2]
[332607082,1721341869107,-500.0,0.00021917,2]
[332607083,1721341869116,-500.0,0.00021917,2]
[332607084,1721341869126,-500.0,0.00021917,2]
[332607085,1721341869136,-500.0,0.00021917,2]
[332607086,1721341869146,-500.0,0.00021917,2]
[332607087,1721341869155,-603.26975862,0.00021917,2]
[332607088,1721341869165,-501.11552274,0.00021917,2]
[332607089,1721341869175,-500.0,0.00021917,2]
[332607090,1721341869185,-500.0,0.00021917,2]
[332607091,1721341869195,-500.0,0.00021917,2]
[332607092,1721341869206,-500.0,0.00021917,2]
[332607093,1721341869215,-518.4623596,0.00021917,2]
[332607094,1721341869224,-500.0,0.00021917,2]
[332607095,1721341869234,-500.0,0.00021917,2]
[332607096,1721341869243,-500.0,0.00021917,2]
[332607097,1721341869254,-500.0,0.00021917,2]
[332607098,1721341869264,-500.0,0.00021917,2]
[332607099,1721341869273,-500.0,0.00021917,2]
[332607100,1721341869282,-500.0,0.00021917,2]
[332607101,1721341869291,-500.0,0.00021917,2]
[332607102,1721341869300,-500.0,0.00021917,2]
[332607103,1721341869311,-500.0,0.00021917,2]
[332607104,1721341869320,-500.0,0.00021917,2]
[332607105,1721341869334,-500.0,0.00021917,2]
[332607106,1721341869343,-500.0,0.00021917,2]
[332607107,1721341869353,-500.0,0.00021917,2]
[332607108,1721341869362,-500.0,0.00021917,2]
[332607109,1721341869372,-500.0,0.00021917,2]
[332607110,1721341869381,-500.0,0.00021917,2]
[332607111,1721341869501,-500.0,0.00021917,2]
[332607112,1721341869526,-500.0,0.00021917,2]
[332607113,1721341869535,-203.18,0.00021917,2]
[332607114,1721341869544,-500.0,0.00021917,2]
[332607115,1721341869555,-509.36,0.00021917,2]
[332607116,1721341869565,-500.0,0.00021917,2]
[332607117,1721341869574,-500.0,0.00021917,2]
[332607118,1721341869584,-500.0,0.00021917,2]
[332607119,1721341869593,-500.0,0.00021917,2]
[332607120,1721341869603,-456.09441673,0.00021917,2]
[332607121,1721341869612,-500.0,0.00021917,2]
[332607122,1721341869622,-505.04663866,0.00021917,2]
[332607123,1721341869631,-500.0,0.00021917,2]
[332607124,1721341869641,-500.0,0.00021917,2]
[332607125,1721341869651,-308.01984489,0.00021917,2]
[332607126,1721341869660,-500.0,0.00021917,2]
[332607127,1721341869670,-500.0,0.00021917,2]
[332607128,1721341869679,-500.0,0.00021917,2]
[332607129,1721341869690,-500.0,0.00021917,2]
[332607130,1721341869702,-500.0,0.00021917,2]
[332607131,1721341869712,-500.0,0.00021917,2]
[332607132,1721341869725,-500.0,0.00021917,2]
[332607133,1721341869734,-500.0,0.00021917,2]
[332607134,1721341869744,-500.0,0.00021917,2]
[332607135,1721341869754,-500.0,0.00021917,2]
[332607136,1721341869764,-500.0,0.00021917,2]
[332607137,1721341869775,-500.0,0.00021917,2]
[332607138,1721341869786,-500.0,0.00021917,2]
[332607139,1721341869797,-500.0,0.00021917,2]
[332607140,1721341869809,-501.5884538,0.00021917,2]
[332607141,1721341869822,-500.0,0.00021917,2]
[332607142,1721341869834,-505.46618587,0.00021917,2]
[332607143,1721341869845,-500.0,0.00021917,2]
[332607144,1721341869854,-515.98537829,0.00021917,2]
[332607145,1721341869864,-508.15443658,0.00021917,2]
[332607146,1721341869874,-517.55542006,0.00021917,2]
[332607147,1721341869883,-500.0,0.00021917,2]
[332607148,1721341869894,-509.05096793,0.00021917,2]
[332607149,1721341869904,-500.0,0.00021917,2]